bitfinex/quotes_ETHUSD_20210701
["timestamp","ask_amount","ask_price","bid_price","bid_amount"]
[1625177134310,20.20997749,2129.9,2129.0,4.4347]
[1625177134412,0.20997749,2129.9,2128.9,0.9853]
[1625177134561,2.4929157,2129.9,2128.5,0.19410442]
[1625177134661,2.4929157,2129.9,2128.4,0.10098232]
[1625177135414,9.5372057,2129.9,2128.4,0.10098232]
[1625177135517,20.0,2129.8,2128.4,0.10098232]
[1625177135674,20.0,2129.2,2128.4,0.10098232]
[1625177135769,24.7199,2129.2,2128.4,0.10098232]
[1625177135976,29.7299,2129.2,2128.4,0.10098232]
[1625177136170,9.7299,2129.2,2128.4,0.10098232]
[1625177136570,7.04701,2129.1,2128.4,0.10098232]
[1625177136670,20.01283821,2129.2,2127.3,0.08599007]
[1625177136769,0.10098232,2128.2,2127.2,0.05240673]
[1625177136870,3.7445,2128.5,2127.2,0.05240673]
[1625177137112,3.7445,2128.5,2127.3,0.2]
[1625177137261,3.7445,2128.5,2127.1,7.04761]
[1625177137816,3.7445,2128.5,2127.1,9.49865312]
[1625177137968,7.04701,2129.2,2127.1,9.49865312]
[1625177137969,7.04701,2129.2,2127.2,0.08]
[1625177138063,7.04701,2129.2,2127.3,0.05386389]
[1625177138314,7.04701,2129.2,2127.2,0.06091381]
[1625177138420,20.0,2128.8,2127.2,0.06091381]
[1625177138817,29.39843,2128.8,2127.1,1.12829]
[1625177138913,42.40843,2128.8,2127.1,1.12829]
[1625177139013,44.10093,2128.8,2127.1,1.12829]
[1625177139707,34.7025,2128.8,2127.1,1.12829]
[1625177139908,20.0,2128.2,2127.1,1.12829]
[1625177140065,24.0887,2127.7,2127.1,1.12829]
[1625177140157,12.0887,2127.7,2126.1,0.2]
[1625177140258,12.0887,2127.7,2126.2,0.00694357]
[1625177140259,9.0987,2127.7,2126.2,0.00694357]
[1625177140411,9.0987,2127.7,2126.1,0.2]
[1625177140613,9.0987,2127.7,2126.1,1.32882]
[1625177140614,4.0887,2127.7,2126.1,1.32882]
[1625177140709,4.0887,2127.7,2126.2,1.16877]
[1625177141163,5.01,2128.4,2126.7,7.04994]
[1625177141263,0.05106031,2128.6,2126.8,1.12845]
[1625177141360,10.89785293,2128.7,2126.8,1.32845]
[1625177141361,5.54985293,2128.7,2126.8,1.32845]
[1625177141530,0.53985293,2128.7,2126.8,1.32845]
[1625177141624,0.53985293,2128.7,2127.0,39.22921728]
[1625177141769,0.53985293,2128.7,2127.1,1.18138734]
[1625177141872,0.53985293,2128.7,2127.1,5.45238734]
[1625177141969,0.01065546,2129.2,2127.1,5.45238734]
[1625177142153,0.01065546,2129.2,2127.1,10.31238734]
[1625177142250,0.01065546,2129.2,2127.1,5.30238734]
[1625177142351,0.01065546,2129.2,2127.1,10.31238734]
[1625177142449,10.5379,2129.3,2127.2,0.12]
[1625177142601,10.5379,2129.3,2127.3,0.11685454]
[1625177143005,10.5379,2129.3,2127.7,7.0466]
[1625177143107,0.53985293,2129.3,2127.7,7.0466]
[1625177143206,0.53985293,2129.3,2127.7,12.0566]
[1625177143304,0.53985293,2129.3,2127.7,5.01]
[1625177143405,0.53985293,2129.3,2127.6,14.405]
[1625177143606,20.0,2129.0,2127.6,5.01]
[1625177143782,35.0,2128.9,2127.6,5.01]
[1625177143860,35.0,2128.9,2127.1,15.38569]
[1625177143962,51.3657,2128.9,2127.1,15.38569]
[1625177144062,51.3657,2128.9,2127.1,5.98829]
[1625177144161,0.53985293,2128.8,2127.1,5.98829]
[1625177144311,0.53985293,2128.8,2127.1,0.97829]
[1625177144466,20.0,2128.7,2127.1,5.98829]
[1625177144559,20.01,2128.7,2127.1,5.98829]
[1625177144662,28.01,2128.7,2127.1,5.98829]
[1625177144810,29.1828,2128.7,2127.1,0.97829]
[1625177145013,20.0,2128.6,2127.1,0.97829]
[1625177145114,15.0,2128.5,2127.1,0.97829]
[1625177145312,28.01,2128.5,2127.1,0.97829]
[1625177145615,29.4912,2128.5,2127.1,0.97829]
[1625177146059,7.04976,2128.4,2127.1,0.97829]
[1625177146158,6.4912,2128.5,2127.1,0.97829]
[1625177146261,1.4812,2128.5,2127.1,0.97829]
[1625177146456,1.4812,2128.5,2127.2,0.06]
[1625177147113,7.04769,2128.9,2127.6,3.5075]
[1625177147311,7.04769,2128.9,2127.6,8.5175]
[1625177147558,7.04769,2128.9,2127.6,3.5075]
[1625177147809,7.04769,2128.9,2127.6,8.5175]
[1625177147911,20.0,2128.5,2127.6,3.5075]
[1625177148110,35.0,2128.5,2127.6,3.5075]
[1625177148265,7.05032,2128.1,2127.2,5.01]
[1625177148366,7.05032,2128.1,2127.1,0.97829]
[1625177148467,12.06032,2128.1,2127.1,0.97829]
[1625177149114,12.06032,2128.1,2126.1,0.2]
[1625177149214,20.0,2127.9,2126.1,0.2]
[1625177149370,11.47256,2127.7,2126.2,7.05122]
[1625177149617,16.48256,2127.7,2126.2,7.05122]
[1625177150064,16.48256,2127.7,2126.2,12.06122]
[1625177150957,20.0,2127.6,2126.2,5.01]
[1625177151055,25.01,2127.6,2126.1,0.2]
[1625177151653,5.01,2127.6,2126.1,0.2]
[1625177151761,32.4311,2127.7,2126.1,0.2]
[1625177151855,20.0,2127.4,2126.1,0.2]
[1625177152055,25.01,2127.4,2126.1,0.2]
[1625177152206,20.0,2127.3,2126.1,0.2]
[1625177152405,7.05302,2127.2,2126.1,0.2]
[1625177152557,10.51208,2127.5,2126.1,0.2]
[1625177152558,9.40388,2127.5,2126.1,0.2]
[1625177152660,5.01,2127.6,2126.1,0.2]
[1625177152763,0.00970418,2128.0,2126.1,4.8692]
[1625177152865,0.01496249,2128.1,2126.2,0.12]
[1625177152963,10.5221,2128.2,2126.2,15.12]
[1625177153066,10.5221,2128.2,2126.3,0.2]
[1625177153164,10.5221,2128.2,2126.4,0.12590376]
[1625177153464,10.7852,2128.4,2126.4,0.12590376]
[1625177153616,30.7852,2128.4,2126.4,0.12590376]
[1625177153717,30.7852,2128.4,2126.3,9.61033704]
[1625177153864,20.0,2128.4,2126.3,14.62033704]
[1625177153965,31.98145,2128.5,2126.3,22.62033704]
[1625177154065,31.98145,2128.5,2126.4,0.08]
[1625177154066,36.99145,2128.5,2126.4,0.08]
[1625177154164,44.99145,2128.5,2126.5,0.09098916]
[1625177154266,34.73885,2128.5,2126.5,0.09098916]
[1625177154466,34.68885,2128.5,2126.5,0.09098916]
[1625177154568,34.68885,2128.5,2126.6,0.12]
[1625177154666,34.68885,2128.5,2126.6,3.0636]
[1625177154765,24.71385,2128.5,2126.6,3.0636]
[1625177154866,24.71385,2128.5,2126.6,8.0736]
[1625177155112,7.04922,2128.4,2127.0,7.04891]
[1625177155210,20.0,2128.3,2126.8,1.1794]
[1625177155315,20.0,2128.3,2126.5,1.5383]
[1625177155466,20.0,2127.5,2125.7,13.51328385]
[1625177155564,3.0501,2127.1,2125.7,1.71972214]
[1625177155671,10.0,2126.9,2125.7,0.99972214]
[1625177155764,15.0,2126.8,2125.7,0.99972214]
[1625177155866,35.0,2126.8,2125.7,0.99972214]
[1625177155963,20.01,2126.8,2125.0,10.4745]
[1625177156110,0.06,2126.7,2124.7,10.1292]
[1625177156212,5.5416,2126.4,2124.7,10.1292]
[1625177156365,7.05671,2125.9,2125.1,0.2]
[1625177156510,11.15011,2125.9,2125.1,0.2]
[1625177157333,16.16011,2125.9,2125.1,0.2]
[1625177157538,20.0,2125.6,2125.1,0.2]
[1625177157732,33.01,2125.6,2125.1,0.2]
[1625177158585,48.01,2125.6,2125.1,0.2]
[1625177158686,20.0,2125.2,2124.1,0.2]
[1625177158937,6.9833,2124.8,2124.1,0.2]
[1625177159036,11.9933,2124.8,2124.1,0.2]
[1625177159285,0.08,2124.7,2124.1,0.2]
[1625177159384,13.88700881,2124.8,2124.1,0.2]
[1625177160541,5.77700881,2124.8,2124.1,0.2]
[1625177160638,4.1,2125.0,2124.1,0.2]
[1625177161934,9.11,2125.0,2124.1,0.2]
[1625177162795,11.76838,2125.7,2124.2,35.55]
[1625177162898,21.8637,2126.3,2124.2,39.0671]
[1625177162989,21.8637,2126.3,2124.3,0.30344334]
[1625177162990,10.8452,2126.3,2124.3,0.30344334]
[1625177163090,10.2222,2126.4,2124.3,0.30344334]
[1625177163291,10.2222,2126.4,2124.4,0.08]
[1625177163389,10.2222,2126.4,2124.5,0.26097481]
[1625177163540,20.2706,2127.0,2124.5,0.26097481]
[1625177163640,32.03233,2127.0,2125.1,7.05406]
[1625177163740,32.03233,2127.0,2125.2,0.11001565]
[1625177163890,21.73523,2127.0,2125.2,0.11001565]
[1625177164248,10.9391,2127.1,2125.2,0.11001565]
[1625177164446,10.9391,2127.1,2125.3,0.2]
[1625177164549,10.9391,2127.1,2125.4,0.20431551]
[1625177164751,10.9391,2127.1,2126.1,7.0515]
[1625177164900,7.05226,2127.5,2126.1,10.102]
[1625177164999,7.05226,2127.5,2126.1,15.112]
[1625177165198,7.05226,2127.5,2126.2,0.07621299]
[1625177165297,22.394,2128.0,2126.2,0.07621299]
[1625177165401,25.2893765,2128.4,2126.3,0.06]
[1625177165548,25.2893765,2128.4,2126.4,0.10295612]
[1625177165747,15.2814765,2128.4,2126.4,0.10295612]
[1625177165849,15.2814765,2128.4,2126.2,0.15089243]
[1625177166103,7.25046,2127.9,2126.3,9.40037]
[1625177166287,7.25046,2127.9,2126.4,0.07146871]
[1625177166544,7.25046,2127.9,2126.2,0.07368682]
[1625177166845,7.25046,2127.9,2126.3,2.0]
[1625177167152,7.25046,2127.9,2126.2,0.07368682]
[1625177167153,20.0,2127.7,2126.2,0.07368682]
[1625177167250,20.0,2127.2,2125.9,0.17131624]
[1625177167355,23.4549,2127.2,2125.6,0.10097907]
[1625177167451,23.4549,2127.2,2125.4,0.04384424]
[1625177167452,36.4649,2127.2,2125.4,0.04384424]
[1625177167552,20.0,2126.6,2125.4,0.04384424]
[1625177167651,32.0715,2126.6,2125.4,0.04384424]
[1625177167801,17.0815,2126.6,2124.7,0.53985293]
[1625177168098,9.0815,2126.6,2124.7,0.53985293]
[1625177168199,17.0815,2126.6,2124.6,10.6758]
[1625177168298,17.0815,2126.6,2124.8,0.08]
[1625177169045,17.0815,2126.6,2124.6,15.6858]
[1625177169141,20.0,2126.5,2124.3,0.63062752]
[1625177169294,20.0,2126.0,2124.3,0.53985293]
[1625177169490,37.1627,2126.0,2124.3,0.53985293]
[1625177169739,17.1627,2126.0,2124.3,0.53985293]
[1625177169846,9.1627,2126.0,2124.3,0.53985293]
[1625177170093,9.1627,2126.0,2124.4,0.08]
[1625177170296,16.21947,2126.0,2124.5,7.05672]
[1625177170843,11.20947,2126.0,2124.5,7.05672]
[1625177171295,16.21947,2126.0,2124.5,12.06672]
[1625177171396,16.21947,2126.0,2124.5,7.05672]
[1625177171494,16.21947,2126.0,2124.5,12.06672]
[1625177172324,11.20947,2126.0,2124.5,12.06672]
[1625177172427,16.21947,2126.0,2124.5,12.06672]
[1625177172880,16.21947,2126.0,2124.5,18.93672]
[1625177174605,4.1527,2126.0,2124.5,18.93672]
[1625177174707,14.41811,2126.3,2124.5,18.93672]
[1625177174805,14.41811,2126.3,2124.6,43.60459301]
[1625177174906,14.41811,2126.3,2124.7,0.07691398]
[1625177175324,14.41811,2126.3,2124.6,49.15444594]
[1625177175568,14.41811,2126.3,2124.7,0.04419575]
[1625177175671,14.41811,2126.3,2124.7,0.06]
[1625177175970,14.41811,2126.3,2124.7,0.59985293]
[1625177176119,22.41811,2126.3,2124.7,0.59985293]
[1625177176320,22.41811,2126.3,2124.7,0.53985293]
[1625177176426,7.05607,2126.2,2124.8,9.40752]
[1625177176526,12.06607,2126.2,2124.8,14.41752]
[1625177176626,5.01,2126.2,2124.8,5.01]
[1625177176828,5.01,2126.3,2124.7,0.53985293]
[1625177177074,23.38627937,2126.6,2124.7,0.53985293]
[1625177177177,23.38627937,2126.6,2124.6,5.01]
[1625177177428,0.01468865,2126.5,2124.5,12.41985293]
[1625177177896,7.0568,2126.0,2124.8,9.40752]
[1625177178147,12.0668,2126.0,2124.8,14.41752]
[1625177178249,9.40811,2126.3,2124.9,0.2]
[1625177178348,14.41811,2126.3,2124.9,0.2]
[1625177178450,5.01,2126.3,2124.9,0.2]
[1625177178604,16.5383965,2126.6,2124.9,0.2]
[1625177178898,16.5383965,2126.6,2124.7,11.6699]
[1625177179048,16.5383965,2126.6,2125.1,7.0553]
[1625177179049,7.05602,2126.2,2125.1,7.0553]
[1625177179150,7.05602,2126.2,2124.9,9.40707]
[1625177179298,12.06602,2126.2,2124.9,9.40707]
[1625177179397,7.05602,2126.2,2124.9,9.40707]
[1625177179495,12.06602,2126.2,2124.9,9.40707]
[1625177179647,7.05602,2126.2,2124.9,9.40707]
[1625177179808,12.06602,2126.2,2124.9,9.40707]
[1625177179909,15.05602,2126.2,2124.9,9.40707]
[1625177180008,12.06602,2126.2,2124.9,9.40707]
[1625177180112,20.06602,2126.2,2124.9,9.40707]
[1625177180209,12.06602,2126.2,2124.9,9.40707]
[1625177180309,12.06602,2126.2,2124.9,14.41707]
[1625177180764,40.06602,2126.2,2124.7,9.40817]
[1625177180920,13.01,2126.2,2124.7,5.01]
[1625177181014,13.01,2126.2,2124.6,5.01]
[1625177181112,13.01,2126.2,2124.5,11.88]
[1625177181213,13.01,2126.2,2124.5,6.87]
[1625177181365,13.01,2126.2,2124.5,11.88]
[1625177182165,13.01,2126.2,2124.6,0.08]
[1625177182469,7.05688,2125.9,2124.7,9.40817]
[1625177182568,12.06688,2125.9,2124.7,14.41817]
[1625177184915,12.06688,2125.9,2124.7,5.01]
[1625177185013,12.06688,2125.9,2124.5,11.88]
[1625177185162,12.06688,2125.9,2124.5,6.87]
[1625177185264,12.06688,2125.9,2124.5,11.88]
[1625177185515,12.06688,2125.9,2124.5,6.87]
[1625177185617,5.01,2125.9,2124.5,6.87]
[1625177185864,35.0,2125.9,2124.5,6.87]
[1625177186067,40.01,2125.9,2124.5,6.87]
[1625177186774,20.01,2125.9,2124.5,6.87]
[1625177186976,40.01,2125.9,2124.5,6.87]
[1625177187476,7.05842,2125.4,2124.5,6.87]
[1625177187577,12.06842,2125.4,2124.5,6.87]
[1625177187777,20.06842,2125.4,2124.5,6.87]
[1625177187879,20.06842,2125.4,2124.3,9.40871]
[1625177187979,13.01,2125.4,2124.3,9.40871]
[1625177188893,20.0,2124.9,2123.9,6.87]
[1625177188980,32.2381,2124.9,2123.9,6.87]
[1625177189077,37.2481,2124.9,2123.9,6.87]
[1625177189273,29.2481,2124.9,2123.9,6.87]
[1625177189424,26.46223833,2124.9,2123.9,6.87]
[1625177189626,4.2381,2124.9,2123.9,6.87]
[1625177189928,4.2381,2124.9,2124.2,0.12]
[1625177190030,5.01,2125.2,2124.2,0.12]
[1625177190130,5.01,2125.2,2123.9,6.87]
[1625177190131,5.01,2125.0,2123.9,11.88]
[1625177190278,5.01,2125.2,2124.0,43.79462755]
[1625177190529,5.01,2125.4,2124.0,48.80462755]
[1625177190677,5.01,2125.4,2124.2,0.08]
[1625177190827,5.01,2125.5,2124.2,0.08]
[1625177190927,34.2783,2125.7,2124.2,0.08]
[1625177191116,7.05833,2125.4,2124.4,7.05797]
[1625177191212,7.05833,2125.4,2124.2,9.41063]
[1625177191313,12.06833,2125.4,2124.2,9.41063]
[1625177191416,7.05833,2125.4,2124.2,9.41063]
[1625177191520,10.3903,2125.7,2124.3,4.951]
[1625177191617,10.9245,2125.8,2124.3,4.951]
[1625177191715,10.9245,2125.8,2124.4,0.05340631]
[1625177192021,10.9245,2125.8,2124.3,4.951]
[1625177192313,10.9245,2125.8,2124.3,9.961]
[1625177192615,17.98131,2125.8,2124.5,9.40897]
[1625177192769,17.98131,2125.8,2124.6,0.04]
[1625177193350,17.98131,2125.8,2124.5,14.41897]
[1625177194010,10.9245,2125.8,2124.8,1.2497]
[1625177194161,10.9245,2125.8,2124.9,4.2626]
[1625177194358,10.9245,2125.8,2124.9,9.2726]
[1625177194511,10.9563,2126.3,2124.9,9.2726]
[1625177194610,10.3352,2126.5,2124.9,9.2726]
[1625177194708,10.3352,2126.5,2125.0,0.09249284]
[1625177194959,11.7621,2126.7,2125.0,0.09249284]
[1625177195161,7.05522,2126.2,2124.9,9.2726]
[1625177195259,7.05522,2126.2,2124.9,9.2326]
[1625177195360,12.06522,2126.2,2124.9,9.2326]
[1625177196114,12.06522,2126.2,2125.0,0.06]
[1625177196214,7.05522,2126.2,2125.0,0.06]
[1625177196368,5.01,2126.6,2125.2,7.05461]
[1625177196464,11.7621,2126.7,2125.2,7.05461]
[1625177196571,11.7621,2126.7,2125.3,0.13263533]
[1625177196670,35.4220232,2127.0,2125.3,0.13263533]
[1625177196969,31.8949,2127.0,2125.3,0.13263533]
[1625177197066,31.8949,2127.0,2125.5,3.52638]
[1625177197168,31.8949,2127.0,2125.5,9.23218]
[1625177197266,31.8949,2127.0,2125.6,0.07769336]
[1625177197368,21.4091,2127.0,2125.6,0.07769336]
[1625177198416,21.4091,2127.0,2126.2,7.05262]
[1625177198567,10.4107,2127.5,2126.2,10.97762]
[1625177198663,10.4107,2127.5,2126.3,0.05335324]
[1625177198865,13.92268,2127.6,2126.3,0.05335324]
[1625177198964,7.05268,2127.6,2126.3,0.05335324]
[1625177199764,12.06268,2127.6,2126.3,0.05335324]
[1625177199867,20.06268,2127.6,2126.2,3.925]
[1625177200117,7.0528,2127.5,2126.4,9.40338]
[1625177200318,12.0628,2127.5,2126.4,9.40338]
[1625177202023,5.01,2127.5,2126.4,9.40338]
[1625177202414,5.01,2127.6,2126.4,9.40338]
[1625177202472,13.01,2127.6,2126.4,9.40338]
[1625177202572,5.01,2127.6,2126.4,9.40338]
[1625177202721,11.75526,2127.8,2126.4,9.40338]
[1625177203124,11.75526,2127.8,2126.4,9.44819234]
[1625177203324,11.75526,2127.8,2126.4,9.40338]
[1625177203525,11.75526,2127.8,2126.5,0.04700015]
[1625177203677,10.2893,2127.9,2126.5,0.08]
[1625177203774,10.2893,2127.9,2126.4,9.44572477]
[1625177203879,18.2893,2127.9,2126.4,9.40338]
[1625177203978,23.2993,2127.9,2126.4,9.40338]
[1625177204677,45.35078,2127.9,2126.9,7.05158]
[1625177204776,48.21,2127.9,2126.9,7.05158]
[1625177204976,50.50723797,2127.9,2126.9,7.05158]
[1625177205076,50.50723797,2127.9,2126.9,4.26635055]
[1625177205177,50.50723797,2127.9,2126.7,9.4021]
[1625177205980,7.05251,2127.6,2126.7,9.4021]
[1625177206078,12.06251,2127.6,2126.7,9.4021]
[1625177206179,20.06251,2127.6,2126.7,9.4021]
[1625177206782,2.0,2127.4,2126.7,9.4021]
[1625177206948,36.55,2127.1,2125.9,9.40339]
[1625177207041,56.56,2127.1,2125.9,9.40339]
[1625177207146,64.56,2127.1,2125.9,9.40339]
[1625177207442,64.56,2127.1,2125.6,11.75368]
[1625177207547,7.0555583,2126.8,2125.5,10.2401]
[1625177207640,0.04283922,2126.7,2125.5,10.2401]
[1625177207842,2.04283922,2126.7,2125.5,10.2401]
[1625177208194,7.05606,2126.0,2125.0,17.70815]
[1625177208543,7.05606,2126.0,2125.0,7.05595]
[1625177208642,7.05606,2126.0,2125.1,0.1]
[1625177209204,7.05515,2126.3,2125.1,7.05543]
[1625177209286,0.0153725,2126.3,2125.1,11.98663]
[1625177209384,2.0,2126.6,2125.1,16.99663]
[1625177209487,2.0,2126.6,2125.2,0.1]
[1625177209934,11.9705,2126.7,2125.2,0.1]
[1625177210184,2.0,2126.7,2125.2,0.1]
[1625177210288,39.80178,2127.2,2125.9,7.05306]
[1625177210388,2.0,2127.1,2125.9,10.45016]
[1625177210484,2.0,2127.1,2125.9,15.46016]
[1625177210636,2.0,2127.1,2126.0,0.1]
[1625177210737,0.2,2127.9,2126.0,0.1]
[1625177210889,0.2,2127.9,2126.1,0.04490378]
[1625177211082,0.2,2127.9,2126.3,0.1480713]
[1625177211285,0.2,2127.9,2126.5,0.06984068]
[1625177211638,0.2,2127.9,2127.1,7.04842]
[1625177211790,0.2,2127.9,2127.1,11.21272]
[1625177211886,0.2,2127.9,2127.1,16.22272]
[1625177212087,0.2,2127.9,2127.2,0.2]
[1625177212938,0.2,2127.9,2127.2,15.2]
[1625177213039,0.2,2127.9,2127.2,5.21]
[1625177213145,0.0001,2127.9,2127.2,5.21]
[1625177213241,0.0001,2127.9,2127.2,0.2]
[1625177213340,0.0001,2127.9,2127.5,9.39534]
[1625177213544,0.0001,2127.9,2127.5,14.40534]
[1625177213882,0.0001,2127.9,2127.5,22.40534]
[1625177214132,0.0001,2127.9,2127.5,14.40534]
[1625177214231,0.0001,2127.9,2127.5,22.40534]
[1625177214334,0.0001,2127.9,2127.6,0.2]
[1625177214433,0.0001,2127.9,2127.6,5.0391]
[1625177214534,0.0001,2127.9,2127.7,9.39378]
[1625177214633,0.0001,2127.9,2127.7,17.39378]
[1625177214734,0.0001,2127.9,2127.8,23.7]
[1625177214934,0.0001,2127.9,2127.8,0.2]
[1625177215084,0.0001,2127.9,2127.8,5.21]
[1625177215183,0.0001,2127.9,2127.8,0.2]
[1625177215288,0.0001,2127.9,2127.8,5.21]
[1625177215483,0.0001,2127.9,2127.8,0.2]
[1625177216148,0.0001,2127.9,2127.5,9.39534]
[1625177216149,0.0001,2127.9,2127.2,30.15264]
[1625177216539,0.0001,2127.9,2127.2,19.89754]
[1625177217095,0.0001,2127.9,2126.6,10.508]
[1625177217243,0.0001,2127.9,2126.5,20.1235]
[1625177217514,3.2002,2127.9,2126.5,20.1235]
[1625177217708,8.2102,2127.9,2126.5,10.182]
[1625177217807,11.2002,2127.9,2126.5,10.182]
[1625177217910,8.2102,2127.9,2126.5,10.182]
[1625177218281,16.2102,2127.9,2126.5,10.182]
[1625177218538,9.40112,2127.8,2125.8,10.4691]
[1625177218736,14.41112,2127.8,2125.9,0.2]
[1625177218836,9.40112,2127.8,2125.9,0.2]
[1625177218940,0.0001,2127.9,2125.9,0.2]
[1625177219094,0.0001,2127.9,2126.0,4.75334779]
[1625177219191,0.0001,2127.9,2126.1,15.0]
[1625177219290,0.0001,2127.9,2127.6,47.42060059]
[1625177219394,0.0001,2127.9,2127.6,52.24660059]
[1625177219490,0.0001,2127.9,2127.7,0.2]
[1625177219591,0.0001,2127.9,2127.8,31.19587]
[1625177219691,0.0001,2127.9,2127.8,7.04587]
[1625177219793,0.0001,2127.9,2127.8,12.05587]
[1625177219938,0.0001,2127.9,2127.8,12.25587]
[1625177221300,0.0001,2127.9,2127.8,20.25587]
[1625177221403,0.0001,2127.9,2127.8,27.50587]
[1625177221898,0.0001,2127.9,2127.8,20.25587]
[1625177223117,0.0001,2127.9,2127.8,7.24587]
[1625177223819,0.1001,2128.9,2127.9,14.2]
[1625177224072,0.1001,2128.9,2128.0,0.06]
[1625177224267,0.1001,2128.9,2127.7,9.39186]
[1625177224372,7.14643,2128.9,2127.7,9.39186]
[1625177224572,32.15643,2128.9,2127.4,9.39529]
[1625177224719,12.15643,2128.9,2127.4,9.39529]
[1625177225052,40.15643,2128.9,2127.4,9.39529]
[1625177225152,20.15643,2128.9,2127.4,9.39529]
[1625177225303,13.1101,2128.9,2127.4,9.39529]
[1625177225455,9.39709,2128.7,2126.8,32.03971]
[1625177225552,14.40709,2128.7,2127.0,10.5765]
[1625177225703,22.40709,2128.7,2127.0,10.5765]
[1625177225904,42.40709,2128.7,2127.0,10.5765]
[1625177227151,45.93161,2128.7,2127.0,10.5765]
[1625177227467,7.04936,2128.0,2127.0,10.5765]
[1625177227617,7.04936,2128.0,2126.9,7.04914]
[1625177228369,12.86468,2128.4,2126.9,7.04914]
[1625177228520,25.87468,2128.4,2126.9,7.04914]
[1625177228818,17.87468,2128.4,2127.0,0.06]
[1625177228918,7.04918,2128.2,2127.0,7.04917]
[1625177229166,7.04918,2128.2,2127.0,12.05917]
[1625177230666,7.04918,2128.2,2127.1,0.04]
[1625177230765,5.01,2128.4,2127.2,7.04863]
[1625177230868,5.01,2128.4,2127.1,0.04]
[1625177230966,47.45451,2128.7,2127.1,0.04]
[1625177231065,47.45451,2128.7,2126.8,16.75241]
[1625177231615,43.92999,2128.7,2126.8,16.75241]
[1625177231863,7.04791,2128.6,2127.4,7.04792]
[1625177231961,22.40709,2128.7,2127.4,7.04792]
[1625177232060,22.40709,2128.7,2127.4,12.05792]
[1625177233479,7.04857,2128.4,2127.4,12.05792]
[1625177233583,12.05857,2128.4,2127.4,12.05792]
[1625177235546,7.04857,2128.4,2127.4,12.05792]
[1625177238545,7.04857,2128.4,2127.4,5.01]
[1625177238649,9.39709,2128.7,2127.5,0.04]
[1625177238801,0.1001,2128.9,2127.5,0.04]
[1625177238896,0.1001,2128.9,2127.6,0.09946273]
[1625177239001,0.1001,2128.9,2127.7,0.2]
[1625177239196,0.1001,2128.9,2127.8,0.05104613]
[1625177239301,0.1001,2128.9,2127.5,0.04]
[1625177239302,0.1001,2128.9,2127.6,0.1373938]
[1625177239603,0.1001,2128.9,2128.3,7.04462]
[1625177239749,0.1001,2128.9,2128.3,10.70962]
[1625177239851,0.1001,2128.9,2128.3,15.7751565]
[1625177240051,0.1001,2128.9,2128.3,18.13770487]
[1625177240150,0.1001,2128.9,2128.4,0.2]
[1625177240400,0.1001,2128.9,2128.5,0.2]
[1625177240786,0.1001,2128.9,2128.6,7.04293]
[1625177240887,0.1001,2128.9,2128.5,0.2]
[1625177241139,0.1001,2128.9,2128.2,5.01]
[1625177241236,0.1001,2128.9,2127.5,21.6763]
[1625177241237,36.5,2128.8,2127.6,1.00266]
[1625177241337,44.5,2128.8,2127.6,1.00266]
[1625177241488,20.0,2128.3,2126.9,10.7494]
[1625177241641,20.0,2128.3,2126.2,10.6974]
[1625177241642,6.79187,2128.1,2126.2,10.6974]
[1625177241837,11.8136811,2128.1,2126.2,10.6974]
[1625177241944,7.04977,2127.8,2126.4,11.74537]
[1625177242639,7.04977,2127.8,2126.5,15.0]
[1625177242787,3.52507,2128.2,2126.5,15.0]
[1625177243023,30.73199,2128.4,2126.6,0.2]
[1625177243379,30.73199,2128.4,2127.1,7.04811]
[1625177243628,30.73199,2128.4,2126.7,9.39795]
[1625177243629,9.39809,2128.4,2127.2,0.14]
[1625177243732,9.39809,2128.4,2126.7,10.51585]
[1625177243977,9.39809,2128.4,2126.7,18.51585]
[1625177244077,9.39809,2128.4,2126.7,23.52585]
[1625177244380,7.04794,2128.2,2127.0,9.39691]
[1625177244537,10.3704,2128.5,2127.1,2.5283]
[1625177244630,10.3704,2128.5,2127.1,2.7283]
[1625177244780,10.3704,2128.5,2127.1,7.7383]
[1625177244882,10.3704,2128.5,2127.1,2.7283]
[1625177245029,10.3704,2128.5,2127.1,1.5134]
[1625177245130,10.3704,2128.5,2127.1,6.5234]
[1625177245385,17.41789,2128.5,2127.1,1.3134]
[1625177245589,32.41789,2128.5,2127.1,1.3134]
[1625177245691,20.0,2128.4,2126.6,10.9307]
[1625177245837,20.0,2128.2,2126.2,21.82868]
[1625177245939,3.5257955,2127.7,2126.2,10.0825]
[1625177246034,3.52597,2127.6,2126.2,10.0825]
[1625177246235,8.53597,2127.6,2126.2,10.0825]
[1625177246388,20.0,2127.4,2125.7,10.3189]
[1625177246487,9.40342,2127.0,2125.7,9.40284]
[1625177246586,4.9962,2126.8,2125.4,10.4151]
[1625177246685,4.9962,2126.8,2125.4,20.8064]
[1625177246884,10.0062,2126.8,2125.4,20.8064]
[1625177246986,10.0062,2126.8,2125.4,10.4151]
[1625177247699,7.05381,2126.6,2125.5,7.0532]
[1625177247949,12.06381,2126.6,2125.4,10.4151]
[1625177249449,12.06381,2126.6,2125.4,17.46923]
[1625177249706,5.01,2126.6,2125.5,0.06]